Cogmind - Beta 11.1 @@@ ROGUE MODE // 2022.06.11 @ 19:00:29 Player: Kisscool Result: Destroyed by S-10 Pest with Light Assault Rifle Performance ------------- Evolutions (0) 0 Regions Visited (1) 200 Robots Destroyed (8) 40 Value Destroyed (253) 253 Prototype IDs (0) 0 Alien Tech Used (0) 0 Bonus (0) 0 TOTAL SCORE: 493 Bonus ------- None Cogmind --------- Core Integrity 0/250 Matter 290/300 Energy 70/100 System Corruption 2% Temperature Cool (0) Movement Rolling (80) Location -10/Materials Parts ------- > --- POWER (1) -------- (None) > --- PROPULSION (2) --- Light Treads Wheel > --- UTILITY (2) ------ (None) > --- WEAPON (2) ------- (None) > --- INVENTORY (5) ---- Aluminum Leg Wheel Peak State ------------ > --- POWER ------------ Ion Engine > --- PROPULSION ------- Aluminum Leg Aluminum Leg > --- UTILITY ---------- Small Storage Unit Improved Terrain Scanner > --- WEAPON ----------- Medium Laser Medium Laser > --- INVENTORY -------- Light Ion Engine Light Treads Light Treads Wheel Wheel Small Laser [Rating: 9] Favorites ----------- Power Ion Engine Engine Ion Engine Propulsion Aluminum Leg Treads Light Treads Leg Aluminum Leg Wheel Wheel Utility Small Storage Unit Device Improved Terrain Scanner Storage Small Storage Unit Weapon Medium Laser Energy Gun Medium Laser Build | -11 -10 ------- Run | Scr Mat Slots Evolved . | . . Power . | . . Propulsion . | . . Utility . | . . Weapon . | . . Parts Attached 17 | 10 7 Power 3 | 1 2 Engine 3 | 1 2 Core . | . . Reactor . | . . Propulsion 7 | 3 4 Treads 2 | . 2 Leg 2 | 2 . Wheel 3 | 1 2 Hover . | . . Flight . | . . Utility 2 | 2 . Device 1 | 1 . Storage 1 | 1 . Processor . | . . Hackware . | . . Protection . | . . Artifact . | . . Weapon 5 | 4 1 Energy Gun 5 | 4 1 Energy Cannon . | . . Ballistic Gun . | . . Ballistic Cannon . | . . Launcher . | . . Special Weapon . | . . Impact Weapon . | . . Slashing Weapon . | . . Piercing Weapon . | . . Special Melee Weapon . | . . Unidentified Prototypes . | . . Parts Lost 11 | . 11 Power 3 | . 3 Propulsion 3 | . 3 Utility 2 | . 2 Weapon 3 | . 3 Highest Loss Streak 11 | . 11 To Critical Strikes . | . . Average Slot Usage (%) 92 | . 92 Engine 14 | . 14 Treads 4 | . 4 Leg 20 | . 20 Wheel 1 | . 1 Device 11 | . 11 Storage 14 | . 14 Energy Gun 25 | . 25 Naked Turns . | . . Heaviest Build 15 | 15 15 Greatest Support 20 | 20 20 Greatest Overweight (x) 3 | . 3 Average Overweight (x) . | . . Largest Inventory Capacity 8 | 8 8 Average Capacity 7 | 7 7 Most Carried 8 | 8 6 Average Carried 5 | 5 5 Final Capacity 8 | 8 5 Final Carried 6 | 6 2 Class Distribution -------------------- 100% | Mutant Dominant Class ---------------- Mutant | -10/Materials Resources | -11 -10 ----------- Run | Scr Mat Matter Collected 340 | 215 125 Remotely . | . . Salvage Created 306 | 13 293 Parts 18 | 5 13 Haulers Intercepted . | . . Recyclers Shooed . | . . Parts Field Recycled . | . . Retrieved Matter . | . . Parts Self-Destructed . | . . Prevented . | . . Kills | -11 -10 ------- Run | Scr Mat Combat Hostiles Destroyed 6 | . 6 Melee 1 | . 1 Guns 4 | . 4 Classes Destroyed 3 | 1 2 Tunneler 1 | 1 . Watcher 1 | . 1 Grunt 6 | . 6 Best Kill Streak 3 | 1 3 Combat Bots Only 3 | . 3 Max Kills in Single Turn 1 | 1 1 Gunslinging . | . . Exploded . | . . Melee 1 | . 1 Uniques/NPCs Destroyed . | . . Combat | -11 -10 -------- Run | Scr Mat Damage Taken 1055 | . 1055 Core 254 | . 254 Absorbed by Shields . | . . Core Remaining (%) 100 | 100 . Volleys Fired 31 | 1 30 Largest 2 | 2 2 Hottest 100 | 100 100 Shots Fired 51 | 2 49 Gun 51 | 2 49 Cannon . | . . Launcher . | . . Special . | . . Kinetic . | . . Thermal 51 | 2 49 Explosive . | . . Electromagnetic . | . . Robot Hit Streak 10 | 1 10 Robot Miss Streak 7 | . 7 Penetration Max . | . . Secondary Targets 1 | . 1 Max Gunslinging Chain 1 | . 1 Shots Hit Robots 31 | 1 30 Core Hits 18 | 1 17 Critical Kills . | . . Critical Parts Destroyed . | . . Critical Strikes 4 | . 4 Burn 4 | . 4 Melee Attacks . | . . Impact . | . . Slashing . | . . Piercing . | . . Sneak Attacks . | . . Combat Hostiles . | . . Follow-up Attacks . | . . Damage Inflicted 436 | 13 423 Guns 397 | 13 384 Cannons . | . . Explosions . | . . Melee . | . . Ramming 39 | . 39 Kinetic . | . . Thermal 397 | 13 384 Explosive . | . . Electromagnetic . | . . Impact . | . . Slashing . | . . Piercing . | . . Highest Corruption 2 | . 2 Average Corruption 2 | . 2 Corruption Purged . | . . Corruption Blocked . | . . Overload Shots . | . . Overflow Damage . | . . Projectiles . | . . Explosions . | . . Melee . | . . Knockbacks . | . . Impact . | . . Kinetic . | . . Secondary . | . . Self-Inflicted Damage 16 | . 16 Shots . | . . Rammed 16 | . 16 Targets Rammed 16 | . 16 Kicked . | . . Crushed . | . . Highest Temperature 577 | 39 577 Average Temperature 265 | 20 274 Received Heat Transfer 531 | . 531 Effects 20 | . 20 Shutdowns 4 | . 4 Short Circuit 5 | . 5 Damage (minor) 3 | . 3 Damage (major) 6 | . 6 Damage (core) 2 | . 2 Siege Activations . | . . Robots Corrupted . | . . Combat Hostiles . | . . Parts Fried . | . . Impact Corruptions . | . . Robots Melted 1 | . 1 Combat Hostiles 1 | . 1 Parts Melted 5 | . 5 Heat Transferred 1408 | 37 1371 Parts Sabotaged . | . . Parts Stolen . | . . Parts Stripped . | . . Power Chain Reactions . | . . Missiles Intercepted . | . . Alert | -11 -10 ------- Run | Scr Mat Peak Influence 100 | 5 100 Initial 3 | . 3 Average 31 | 3 52 Maximum Alert Level . | . . Low Security (%) 100 | 100 100 Level 1 . | . . Level 2 . | . . Level 3 . | . . Level 4 . | . . Level 5 . | . . High Security . | . . Max Security . | . . Squads Dispatched 1 | . 1 Investigation . | . . Extermination . | . . Reinforcement 1 | . 1 Assault . | . . Garrison . | . . Intercept . | . . Searches Triggered . | . . Construction Impeded . | . . Haulers Reinforced . | . . Active Scanning Responses . | . . Cargo Convoy Interrupts . | . . Stealth | -11 -10 --------- Run | Scr Mat Distress Signals 1 | . 1 Communications Jammed . | . . Distress Signals . | . . Times Spotted 12 | . 12 Peak Tracking Total 4 | . 4 Tactical Retreats 1 | . 1 Traps | -11 -10 ------- Run | Scr Mat Traps Triggered . | . . Indirectly . | . . Trap Hack Attempts . | . . Triggered . | . . Disarmed . | . . Reprogrammed . | . . Reused . | . . Traps Extracted . | . . Installed . | . . Triggered . | . . Machines | -11 -10 ---------- Run | Scr Mat Machines Disabled . | . . Max in Single Turn . | . . Machines Sabotaged . | . . Garrisons Compromised . | . . Overloaded Fab Kills . | . . Hacking | -11 -10 --------- Run | Scr Mat Machines Accessed . | . . Terminals . | . . Fabricators . | . . Repair Stations . | . . Recycling Units . | . . Scanalyzers . | . . Garrison Access . | . . Total Hacks . | . . Successful . | . . Failed . | . . Catastrophic . | . . Database Lockouts . | . . Manual . | . . Terminals . | . . Fabricators . | . . Repair Stations . | . . Recycling Units . | . . Scanalyzers . | . . Garrison Access . | . . Terminal Hacks . | . . Fabricator Hacks . | . . Repair Station Hacks . | . . Recycling Unit Hacks . | . . Scanalyzer . | . . Garrison Access Hacks . | . . Unauthorized Hacks . | . . Terminals . | . . Fabricators . | . . Repair Stations . | . . Recycling Units . | . . Scanalyzers . | . . Garrison Access . | . . Data Cores Recovered . | . . Used . | . . Hacking Detections . | . . Full Trace Events . | . . Feedback Events . | . . Feedback Blocked . | . . Robot Schematics Acquired . | . . Robots Built . | . . Authchips . | . . Time . | . . Total Robot Build Rating . | . . Part Schematics Acquired . | . . Parts Built . | . . Authchips . | . . Time . | . . Total Part Build Rating . | . . Parts Repaired . | . . Time . | . . Parts Recycled . | . . Recycled Matter . | . . Retrieved Matter . | . . Retrieved Components . | . . Parts Scanalyzed . | . . Part Schematics Acquired . | . . Parts Damaged . | . . Bothacking | -11 -10 ------------ Run | Scr Mat Used RIF Installer . | . . Robots Hacked . | . . Non-combat . | . . Combat . | . . Robot Hacks Applied . | . . Relay Couplers Released . | . . Fabnet Peak Effective % . | . . Robots Rewired . | . . Allies Hacked . | . . Hacks Repelled . | . . Allies | -11 -10 -------- Run | Scr Mat Total Allies . | . . Largest Group . | . . Highest-Rated Group . | . . Highest-Rated Ally . | . . Total Orders . | . . Ally Attacks . | . . Total Damage . | . . Kills . | . . Allies Corrupted . | . . Allies Melted . | . . Intel | -11 -10 ------- Run | Scr Mat Robot Analysis Total . | . . Derelict Logs Recovered . | . . Drone Launches . | . . Drone Recoveries . | . . Exploration | -11 -10 ------------- Run | Scr Mat Turns Passed 454 | 187 267 Spaces Moved 235 | 110 125 Core 18 | 9 9 Treads . | . . Legs 213 | 99 114 Wheels 4 | 2 2 Hover . | . . Flight . | . . Fastest Speed 50 | 50 95 Average Speed 119 | 113 124 Slowest Speed 200 | 120 200 Overloaded Moves . | . . Propulsion Burnouts . | . . Robots Hopped . | . . Cave-ins Triggered . | . . Exploration Rate (%) 18 | 7 29 Regions Visited 1 Branch Regions . Pre-discovered Areas . | . . Known Exits Taken . | . . Unknown Exits Taken 1 | 1 . Scrap Searched . | . . Spaces Dug . | . . Terrain Destroyed . | . . Melee . | . . Projectile . | . . AOE . | . . Terrain Rammed . | . . Walls Destroyed . | . . Machines Disabled . | . . Actions | -11 -10 --------- Run | Scr Mat Total 353 | 167 186 Wait 42 | 36 6 Move 234 | 109 125 Hop . | . . Pick Up 12 | 10 2 Fast Attach 4 | 4 . Attach 10 | 4 6 Detach . | . . Swap 3 | 2 1 Drop 1 | 1 . Fire 31 | 1 30 Melee . | . . Ram 16 | . 16 Kick . | . . Crush . | . . Escape Stasis . | . . Rewire . | . . Trap . | . . Miscellaneous . | . . Route ------- -11/Scrapyard -10/Materials History --------- Turn | Location | Event 8 | -11/Scrapyard | Discovered new exit (range 16) 188 | -11/Scrapyard | Entered Materials 303 | -10/Materials | Build established: Mutant 385 | -10/Materials | Core integrity fell below 50% 424 | -10/Materials | Core integrity fell below 20% 455 | -10/Materials | Destroyed by S-10 Pest with Light Assault Rifle Last Messages --------------- 00432_ Destabilizing: Core damaged (-5). 00433_ Slammed into G-34 Mercenary. 00434_ Destabilizing: System corrupted (+2). 00435_ Slammed into G-34 Mercenary. 00435_ Destabilizing: Core damaged (-12). 00435_ K-01 Serf collects debris. 00436_ Slammed into G-34 Mercenary. 00437_ Broken Sml. Laser destroyed. 00438_ Slammed into G-34 Mercenary. 00438_ K-01 Serf collects debris. 00439_ Slammed into G-34 Mercenary. 00439_ G-34 Mercenary destroyed. [Achievement: Fist Fight] 00439_ Wheel broken. 00439_ Destabilizing: Short circuit. 00442_ K-01 Serf collects debris. 00449_ K-01 Serf cleans the Atomic Centrifuge. 00453_ Ion Engine destroyed. 00453_ Sml. Storage Unit destroyed. 00453_ K-01 Serf collects debris. Map ----- +----------------------------------------------------+ | ?????????????????????????#????????# ########???? | | ??????????????????????#???##??????# # #?? ? | | ??????????????????????????#???????# # #???? | | ????????????????????? ????????????# # """ #???? | | ???????????????????? ???????????#?# %+ """ #???? | | ???????????????????????############ # """ #???? | | ???????????????????????# + # # ??? | | ???????????????????????# """" ### ########???? | | ???????????????????????# """" #?# #??????????? | | ????????????????????? # """" ] #?# #???#?#??? ? | | ?????????????????????? # ### ######## # | | ?????????????????????? # """ #?# % | | ?????????????????????? # R" ### | | ??????????????? ????## # """ ### | | ??????????????? ? ???# # #?# """ """ | | ????????????????????## ####/####### """"""""" | | ?????????????????"??# ^ # # """"" ?? | | ????????????????????# # "" # ???? | | ???????????????? ???# """" + T" # ? ???? | | ????????????????????# """" # "" # """ ??"????? | | ???????????????###### """" # # """""???????? | | ?????????????#?# #? # ??????????? | | ???????????????# #?? !# ???????????? | | ????????????[[ #??? # ?????? ? ???? | | ????????????[[ ###+####+##??? # ????????????? | | ?????????????? ??#%%%s%@s #?????# ?????????????? | | ?????????????? ????#%%""" r #?????? ?????????????? | | ????????????????? ?#%%"""s #??#?????????????????? | | ???????????????????#%%""" #??????? ????????????? | | ???????????????????#%%% #????????????????????? | | ???????????#???????#%%""" #????????????????????? | | ???????????????????#k """ #???#????????????????? | | ???????????????????# """ #??#?????????????????? | | ?????????????????? # % #????????????????????? | | ???????????????????###########???????????????????? | | ?????????????????? ??#?#????????#??#?????????????? | | ?????????????????????##??????????????????????????? | | ???????#???????????????????????#????#????????????? | | ????????????????????#???????#????????????????????? | | ????????#????????????????????????????????????????? | | ?????????????????????????????????????????????????? | | ?????????????????????????????????????????????????? | | | | | | | | | | | | | | | | | +----------------------------------------------------+ Best States ------------- Heat Dissipation 25 Energy Generation 10 Energy Capacity 250 Matter Stores 300 Matter Capacity 300 Sight Range 16 Terrain Scan Range 16 Terrain Scan Density 10 Evasion (%) 55 Recoil Reduction 1 Item Schematics ----------------- None Robot Schematics ------------------ None Fabricated ------------ Nothing Alien Tech Used ----------------- None Achievements -------------- Fist Fight Challenges ------------ None Game ------ Seed LatentNeutronSuite Manual? 0 Play Time 00:08:37 Cumulative 16.8 hours Start 2022.06.11 @ 11:14:09 End 2022.06.11 @ 19:00:29 Sessions 3 Manual Loads 0 Difficulty Rogue Special Mode None Game No. 7 Rogue 7 Adventurer 0 Explorer 0 Win Type - Total 0 Types 0/0/0/0/0/0/0/0/0 Lore% 15 Gallery% 17 Achievement% 20 Wizard Run 0 Options --------- ASCII 0 Keyboard 0 Movement Numpad Keybinds 0 Fullscreen 2 Font 18/Terminus Map View 76x50 Tactical HUD 1 Map Filters NONE Filters NONE Steam 1 RUN: 66d06529-130a-40bd-8f61-d17c01419787